fUSD/lending_fUSD_20240421
["ID","MTS","AMOUNT","RATE_DAILY","PERIOD"]
[323122022,1713684828937,-1000.0,0.0003468,14]
[323122023,1713684828961,-1000.0,0.000347,14]
[323122024,1713684828984,-1000.0,0.0003472,14]
[323122025,1713684829006,-1000.0,0.0003474,14]
[323122026,1713684829028,-1000.0,0.0003476,14]
[323122027,1713684829055,-1000.0,0.0003478,14]
[323122028,1713684829083,-1000.0,0.000348,14]
[323122029,1713684829107,-1000.0,0.0003482,14]
[323122030,1713684829131,-1000.0,0.0003484,14]
[323122031,1713684829153,-1000.0,0.0003486,14]
[323122032,1713684829176,-1000.0,0.0003488,14]
[323122033,1713684829199,-10009.94000099,0.0003489,10]
[323122034,1713684829222,-1000.0,0.000349,14]
[323122035,1713684829244,-1000.0,0.0003492,14]
[323122036,1713684829267,-1000.0,0.0003494,14]
[323122037,1713684829289,-1195.074679,0.0003494,14]
[323122038,1713684829312,-1000.0,0.0003496,14]
[323122039,1713684829334,-1000.0,0.0003496,14]
[323122040,1713684829358,-1000.0,0.0003498,14]
[323122041,1713684829380,-1000.0,0.0003498,14]
[323122042,1713684829406,-50000.0,0.00035,15]
[323122043,1713684829429,-720.22197142,0.00035,15]
[323122044,1713684829451,-732.72462719,0.00035,120]
[323122045,1713684829474,-1300.0,0.00035,20]
[323122046,1713684829497,-435958.97699603,0.00035,30]
[323122047,1713684829520,-1200.0,0.00035,36]
[323122048,1713684829542,-345610.83741994,0.00035,10]
[323122049,1713684832244,-654389.16258006,0.00035,10]
[323122050,1713684832266,-559.34,0.00035,10]
[323122051,1713684832289,-1000.0,0.00035,14]
[323122052,1713684832312,-1000.0,0.00035,14]
[323122053,1713684832334,-34876.68564536,0.00035,14]
[323122054,1713684832357,-2000.0,0.00035,14]
[323122055,1713684832378,-203.54555201,0.00035,120]
[323122056,1713684832400,-574.0,0.00035145,20]
[323122057,1713684832422,-2186.81,0.00035288,10]
[323122058,1713684832444,-340.91935656,0.00035423,40]
[323122059,1713684832469,-1736.43621496,0.00035423,35]
[323122060,1713684832491,-1618.96111596,0.00035423,40]
[323122061,1713684832514,-1719.24340241,0.00035423,40]
[323122062,1713684832537,-1689.2872429,0.00035423,40]
[323122063,1713684832559,-389.51936693,0.00035423,40]
[323122064,1713684832582,-2108.85338752,0.000356,30]
[323122065,1713684832607,-6810.23375576,0.00035616,120]
[323122066,1713684832630,-574.0,0.00035863,20]
[323122067,1713684832653,-50000.0,0.00036,16]
[323122068,1713684832675,-20902.92114715,0.00036,30]
[323122069,1713684832697,-4000.0,0.00036,32]
[323122070,1713684832721,-1200.0,0.00036,37]
[323122071,1713684832743,-210120.08123242,0.000365,10]
[323122072,1713684841736,-38963.53507996,0.0003,30]
[323122073,1713684841772,-789879.91876758,0.000365,10]
[323122074,1713684841798,-574.0,0.0003658,20]
[323122075,1713684841823,-50000.0,0.00037,17]
[323122076,1713684841847,-1000.0,0.00037,15]
[323122077,1713684841869,-470.83211552,0.00037,30]
[323122078,1713684841892,-398.73907944,0.00037,37]
[323122079,1713684841915,-1200.0,0.00037,38]
[323122080,1713684841937,-1000.0,0.00037,10]
[323122081,1713684841962,-164.9652749,0.00037,30]
[323122082,1713684841985,-116348.0096826,0.00037,12]
[323122083,1713684842014,200.0,0.00014945,2]
[323122084,1713684845414,-593.50447593,0.00035,30]
[323122085,1713684845439,-883651.9903174,0.00037,12]
[323122086,1713684845463,-1000.0,0.00037,120]
[323122087,1713684845487,-574.0,0.00037297,20]
[323122088,1713684845510,-1000.0,0.000375,120]
[323122089,1713684845537,-50000.0,0.00038,18]
[323122090,1713684845559,-10787.96082188,0.00038,20]
[323122091,1713684845583,-800.0,0.00038,38]
[323122092,1713684847061,-20000.0,0.00038,60]
[323122093,1713684847095,-1200.0,0.00038,39]
[323122094,1713684847128,-2678.0,0.00038,120]
[323122095,1713684847153,-27714.54438479,0.00038,12]
[323122096,1713684899610,250.0,0.00014709,2]
[323122098,1713684913853,200.0,0.00014667,2]
[323122099,1713684947299,851.66,0.00014625,2]
[323122100,1713684967380,966.77,0.00014749,2]
[323122101,1713685014155,2091.70826263,0.00014933,2]
[323122103,1713685747158,-200.25592652,0.0001216,2]
[323122104,1713685747179,-684.0277903,0.00012161,2]
[323122105,1713685747201,-1776.2800756,0.00012161,2]
[323122106,1713685747221,-6.80930758,0.00012162,2]
[323122107,1713685792744,5477.2063106,0.00011958,2]
[323122134,1713685831821,-3382.14833468,0.00012054,2]
[323122136,1713685831829,-155.0,0.00012054,2]
[323122138,1713685831838,-2997.81431467,0.00012055,2]
[323122139,1713685831887,-82.33802375,0.00012055,2]
[323122140,1713685831898,-1951.23197625,0.00012055,2]
[323122141,1713685831942,-306.88917699,0.00012055,2]
[323122142,1713685831955,-441.23700119,0.00012055,2]
[323122143,1713685831967,-643.42,0.00012055,2]
[323122144,1713685832103,-4117.55667087,0.00012055,2]
[323122145,1713685832114,-2650.55628748,0.00012055,2]
[323122196,1713685837932,-155.0,0.00012053,2]
[323122199,1713685837946,-1244.24905786,0.00012053,2]
[323122201,1713685837960,-453.94286888,0.00012055,2]
[323122203,1713685837971,-164.47454881,0.00012055,2]
[323122206,1713685837983,-206.72764411,0.00012055,2]
[323122208,1713685837996,-194.35396704,0.00012056,2]
[323122210,1713685838008,-4330.90690104,0.00012056,2]
[323122213,1713685838022,-781.17257393,0.00012057,2]
[323122215,1713685838035,-5545.18226245,0.00012057,2]
[323122218,1713685838047,-162.0894232,0.00012058,2]
[323122219,1713685838062,-2692.67038143,0.00012059,2]
[323122220,1713685838074,-325.63456391,0.00012164,2]
[323122221,1713685838089,-1287.49239605,0.00012165,2]
[323122222,1713685838102,-150.0,0.00012265,2]
[323122223,1713685838116,-532.89332388,0.0001227,2]
[323122224,1713685838128,-2532.66,0.0001227,2]
[323122225,1713685838142,-499.99,0.0001227,2]
[323122226,1713685838154,-150.0,0.00012384,2]
[323122227,1713685838163,-1260.9,0.00012398,2]
[323122228,1713685838172,-2485.3,0.00012398,2]
[323122229,1713685838181,-739.43,0.0001251,2]
[323122230,1713685838194,-22512.82,0.00012537,2]
[323122231,1713685838204,-225.93,0.00012708,2]
[323122232,1713685838216,-150.8,0.00012803,2]
[323122233,1713685838226,-150.8,0.00012855,2]
[323122234,1713685838235,-150.8,0.00012906,2]
[323122235,1713685838248,-150.8,0.00012957,2]
[323122238,1713685838259,-150.8,0.00013009,2]
[323122240,1713685838271,-150.8,0.0001306,2]
[323122241,1713685838283,-150.8,0.00013111,2]
[323122242,1713685838296,-150.8,0.00013163,2]
[323122244,1713685838308,-150.8,0.00013214,2]
[323122246,1713685838320,-150.8,0.00013265,2]
[323122249,1713685838333,-150.8,0.00013317,2]
[323122250,1713685838346,-150.8,0.00013368,2]
[323122251,1713685838359,-150.8,0.00013419,2]
[323122252,1713685838377,-150.8,0.00013471,2]
[323122253,1713685838389,-199.0,0.00013492,2]
[323122254,1713685838402,-639.91,0.00013659,2]
[323122255,1713685838416,-639.91,0.00013662,2]
[323122256,1713685838428,-639.91,0.00013666,2]
[323122257,1713685838440,-639.91,0.00013669,2]
[323122258,1713685838451,-639.91,0.00013673,2]
[323122259,1713685838463,-639.91,0.00013677,2]
[323122260,1713685838474,-639.91,0.0001368,2]
[323122261,1713685838485,-639.91,0.00013684,2]
[323122262,1713685838495,-639.91,0.00013687,2]
[323122263,1713685838507,-639.91,0.00013691,2]
[323122264,1713685838518,-639.91,0.00013695,2]
[323122265,1713685838529,-639.91,0.00013698,2]
[323122266,1713685838542,-390.8,0.00013699,2]
[323122267,1713685838553,-503.14,0.00013699,2]
[323122268,1713685838566,-639.91,0.00013702,2]
[323122269,1713685838577,-639.91,0.00013705,2]
[323122270,1713685838589,-639.91,0.00013709,2]
[323122271,1713685838601,-639.91,0.00013712,2]
[323122272,1713685838613,-639.91,0.00013716,2]
[323122273,1713685838624,-639.91,0.0001372,2]
[323122274,1713685838635,-639.91,0.00013723,2]
[323122275,1713685838646,-639.91,0.00013727,2]
[323122276,1713685838658,-200.0,0.00013746,2]
[323122277,1713685838669,-408.98668893,0.00014,2]
[323122278,1713685838680,-225.93,0.00014297,2]
[323122279,1713685838692,-464.46,0.00014352,3]
[323122280,1713685838704,-161.65807072,0.0001436,2]
[323122281,1713685838715,-389.50452585,0.0001436,2]
[323122282,1713685838730,-175.47432567,0.0001436,2]
[323122283,1713685838742,-200.59158185,0.0001436,2]
[323122284,1713685838754,-685.31644437,0.0001436,2]
[323122285,1713685838765,-1777.50509516,0.0001436,2]
[323122286,1713685838776,-265.34513943,0.0001436,2]
[323122287,1713685838787,-4113.11742697,0.00014361,2]
[323122288,1713685838799,-26174.55324466,0.00014362,2]
[323122289,1713685839514,-96175.74949404,0.00014362,2]
[323122298,1713685839988,-1344.33106011,0.00012054,2]
[323122299,1713685840039,-2414.3466821,0.00012054,2]
[323122300,1713685840049,-4018.4533179,0.00014362,2]
[323122301,1713685840094,-960.75956896,0.00014362,2]
[323122302,1713685840204,-660.03416019,0.00014362,2]
[323122303,1713685840216,-424.5191321,0.00014362,2]
[323122304,1713685840228,-876.34749943,0.00014362,2]
[323122312,1713685840386,-10905.66367353,0.00014362,2]
[323122331,1713685843077,-9478.06990919,0.00014362,2]
[323122332,1713685843087,-1168.14,0.00014425,2]
[323122333,1713685843096,-1854.347622,0.000145,2]
[323122334,1713685843106,-1000.0,0.00014602,2]
[323122335,1713685843115,-166.2,0.00014654,2]
[323122336,1713685843128,-739.43,0.00014774,2]
[323122337,1713685843138,-323.80854154,0.00015,2]
[323122338,1713685843147,-156.7712103,0.00015046,2]
[323122339,1713685843156,-156.77121027,0.00015217,2]
[323122340,1713685843166,-349.4,0.00015256,2]
[323122341,1713685843175,-156.77121027,0.00015388,2]
[323122342,1713685843184,-2079.47320315,0.00015497,2]
[323122343,1713685843194,-1659.81609469,0.00015498,2]
[323122344,1713685843204,-310.31597305,0.00015499,2]
[323122345,1713685843213,-150.0,0.000155,2]
[323122346,1713685843223,-156.77121027,0.00015558,2]
[323122347,1713685843232,-156.77121027,0.00015729,2]
[323122348,1713685843241,-11767.22046,0.00015737,2]
[323122349,1713685843251,-7500.0,0.00015798,2]
[323122350,1713685843260,-606.3338,0.000158,2]
[323122351,1713685843269,-402.9644,0.000158,2]
[323122352,1713685843278,-251.44790458,0.00015838,2]
[323122353,1713685843287,-225.93,0.00015885,2]
[323122354,1713685843297,-22124.9079,0.00015898,2]
[323122355,1713685843307,-2203.435,0.00015899,2]
[323122356,1713685843319,-152.9404,0.00015899,2]
[323122357,1713685843330,-500.0,0.000159,2]
[323122358,1713685843339,-1328.3711,0.000159,2]
[323122359,1713685843348,-35875.6445,0.000159,2]
[323122360,1713685843357,-33619.2935,0.000159,2]
[323122361,1713685843369,-17766.5278,0.000159,2]
[323122362,1713685843379,-156.77121027,0.000159,2]
[323122363,1713685843390,-9603.1001,0.000159,2]
[323122365,1713685843400,-1000.0,0.000159,2]
[323122366,1713685843411,-361.0091171,0.000159,2]
[323122367,1713685843421,-228.63261764,0.000159,2]
[323122368,1713685843432,-154.73172331,0.0001599,2]
[323122369,1713685843441,-151.72,0.0001599,2]
[323122371,1713685843451,-157.56224206,0.00015998,2]
[323122373,1713685843461,-184.57069343,0.00015998,2]
[323122374,1713685843470,-2138.52211679,0.00015998,2]
[323122375,1713685843480,-488.38849224,0.00015998,2]
[323122376,1713685843490,-155.46690831,0.00015998,2]
[323122377,1713685843501,-155.77571308,0.00015998,2]
[323122379,1713685843511,-2856.44135838,0.00015998,2]
[323122381,1713685843521,-208.38182092,0.00015998,2]
[323122382,1713685843531,-155.29175688,0.00015998,2]
[323122383,1713685843542,-155.0,0.00015998,2]
[323122384,1713685843551,-410.37681056,0.00015998,2]
[323122385,1713685843562,-167.75416905,0.00015998,2]
[323122386,1713685843572,-850.37906643,0.00015998,2]
[323122387,1713685843582,-155.30383536,0.00015998,2]
[323122388,1713685843592,-343.17873024,0.00015998,2]
[323122389,1713685843601,-155.81802694,0.00015998,2]
[323122390,1713685843611,-709.66689776,0.00015998,2]
[323122391,1713685843620,-155.0,0.00015998,2]
[323122392,1713685843630,-192.65574287,0.00015999,2]
[323122393,1713685843639,-149896.90113815,0.00016,2]
[323122394,1713685843659,-681734.72882269,0.00016,2]
[323122395,1713685843670,-23654.17236691,0.00016,2]
[323122396,1713685843682,-1742.61217886,0.00016,2]
[323122449,1713685846055,-255.0,0.00016,2]
[323122451,1713685846165,-324.23779872,0.00016,2]
[323122452,1713685846176,-556.65020531,0.00016,2]
[323122453,1713685846187,-31066.95093807,0.00016,2]
[323122454,1713685846221,-375.64520701,0.00016,2]
[323122505,1713685881549,757.0524794,9e-05,2]
[323122506,1713685917419,2867.07186139,6.94e-05,2]
[323122597,1713686383021,775.02,0.00011884,2]
[323122609,1713686484467,150.0,0.0001188,2]
[323122614,1713686548139,6000.0,0.0001185,2]
[323122620,1713686649645,10691.8849143,0.00027,120]
[323122621,1713686677006,399.17869127,0.0001185,2]
[323122622,1713686697276,399.17869127,0.0001185,2]
[323122625,1713686718977,399.17869127,0.0001185,2]
[323122627,1713686736928,399.17869127,0.0001185,2]
[323122628,1713686752927,399.17869127,0.0001185,2]
[323122631,1713686768951,399.17869127,0.0001185,2]
[323122632,1713686792936,187.87641178,0.0001185,2]
[323122634,1713686810177,-155.0,0.00012958,2]
[323122635,1713686810197,-28.60778526,0.00012958,2]
[323122640,1713686842946,241.77634794,0.0001185,2]
[323122641,1713686860941,241.77634794,0.0001185,2]
[323122643,1713686877044,241.77634794,0.0001185,2]
[323122646,1713686887129,5000.0,0.000145,5]
[323122648,1713686904082,761.63,0.00011781,2]
[323122649,1713686904942,241.77634794,0.0001185,2]
[323122650,1713686920992,241.77634794,0.0001185,2]
[323122651,1713686937624,3500.0,0.00012,2]
[323122655,1713686958988,241.77634794,0.0001185,2]
[323122656,1713686976964,241.77634794,0.0001185,2]
[323122657,1713686992973,366.6090496,0.0001185,2]
[323122675,1713687032206,-163.77005438,0.00012848,2]
[323122676,1713687032217,-194.35396704,0.00012946,2]
[323122677,1713687032226,-313.70598498,0.00012947,2]
[323122678,1713687032236,-629.729002,0.00012947,2]
[323122679,1713687032247,-605.0,0.0001295,2]
[323122680,1713687032256,-367.0,0.00012954,2]
[323122681,1713687032265,-3080.15233842,0.00012968,2]
[323122682,1713687032275,-1244.24905786,0.00012969,2]
[323122683,1713687032286,-1000.0,0.00013,2]
[323122684,1713687032295,-2066.1766306,0.00013,2]
[323122685,1713687032310,-882.33461522,0.00013,2]
[323122686,1713687032322,-722.23231057,0.00013,2]
[323122687,1713687032356,-504.69421276,0.00013,2]
[323122688,1713687032374,-1271.24,0.00013,2]
[323122689,1713687032388,-267.11689591,0.00013,2]
[323122690,1713687032402,-2084.58601039,0.00013,2]
[323122691,1713687032425,-22481.91351785,0.00013,2]
[323122692,1713687032437,-164.47454881,0.00013426,2]
[323122693,1713687032447,-299.99,0.00013426,2]
[323122694,1713687032457,-150.99,0.00013427,2]
[323122695,1713687032467,-150.0,0.00013432,2]
[323122696,1713687032477,-2548.67,0.00013433,2]
[323122697,1713687032487,-5323.11,0.00013524,2]
[323122698,1713687032498,-499.99,0.00013524,2]
[323122699,1713687032510,-150.99,0.00013524,2]
[323122700,1713687032519,-2354.9788646,0.00013525,2]
[323122701,1713687032530,-1629.67,0.00013525,2]
[323122702,1713687032540,-284.97,0.00013525,2]
[323122703,1713687032551,-3199.08251563,0.00013534,2]
[323122704,1713687032560,-1210.55,0.00013669,2]
[323122705,1713687032570,-501.59672343,0.000137,2]
[323122706,1713687032579,-193.84,0.00013739,2]
[323122707,1713687032588,-166.2,0.00013755,2]
[323122709,1713687032597,-250.0,0.00013761,2]
[323122711,1713687032606,-164.21,0.00013791,2]
[323122713,1713687032616,-282.13,0.0001381,2]
[323122715,1713687032626,-186.94,0.00013842,2]
[323122717,1713687032635,-186.94,0.00013877,2]
[323122719,1713687032644,-920.66,0.00013911,2]
[323122721,1713687032653,-186.94,0.00013911,2]
[323122723,1713687032662,-214.24,0.00013926,2]
[323122725,1713687032671,-155.0,0.0001403,2]
[323122727,1713687032680,-164.21,0.00014031,2]
[323122729,1713687032689,-761.63,0.00014045,2]
[323122731,1713687032698,-6183.81,0.00014148,2]
[323122732,1713687032707,-164.21,0.0001427,2]
[323122734,1713687032717,-703.8696287,0.00014361,2]
[323122736,1713687032726,-164.21,0.0001451,2]
[323122738,1713687032735,-852.38973449,0.00015,2]
[323122740,1713687032744,-3010.4096002,0.00015,2]
[323122742,1713687032754,-323.80854154,0.0001508,2]
[323122744,1713687032765,-232.12,0.00015081,2]
[323122746,1713687032774,-4330.90690104,0.00015399,2]
[323122748,1713687032784,-4346.24521469,0.000154,2]
[323122750,1713687032794,-193.84,0.00015456,2]
[323122752,1713687032803,-150.0,0.000155,2]
[323122754,1713687032812,-521.81,0.00015534,2]
[323122755,1713687032821,-418.94,0.00015534,2]
[323122756,1713687032830,-473.68,0.00015534,2]
[323122757,1713687032843,-301.96,0.00015534,2]
[323122758,1713687032853,-150.0,0.00015534,2]
[323122759,1713687032863,-700.58,0.00015534,2]
[323122760,1713687032872,-10000.0,0.00015616,2]
[323122761,1713687032882,-920.66,0.0001565,2]
[323122762,1713687032891,-214.24,0.00015667,2]
[323122763,1713687032901,-5000.0,0.000157,2]
[323122764,1713687032911,-150.0,0.00015764,2]
[323122765,1713687032922,-9475.5116,0.000158,2]
[323122766,1713687032933,-554.22282149,0.000158,2]
[323122767,1713687032944,-3468.196,0.000158,2]
[323122768,1713687032955,-1822.4628,0.000158,2]
[323122769,1713687032964,-238.2508,0.000158,2]
[323122770,1713687032974,-1000.0,0.000158,2]
[323122771,1713687032984,-2500.0,0.000158,2]
[323122772,1713687032993,-150.0,0.00015825,2]
[323122773,1713687033005,-1244.65634193,0.00015898,2]
[323122774,1713687033015,-220.66660495,0.00015898,2]
[323122775,1713687033025,-399.0415,0.00015898,2]
[323122776,1713687033036,-179.39321268,0.00015899,2]
[323122777,1713687033046,-181.03262709,0.00015899,2]
[323122778,1713687033058,-15914.74125558,0.00015899,2]
[323122779,1713687033069,-288.80729368,0.00015899,2]
[323122780,1713687033078,-222.00545377,0.00015899,2]
[323122781,1713687033087,-173.80588472,0.00015899,2]
[323122782,1713687033096,-14520.67348518,0.000159,2]
[323122783,1713687033112,-6666.6,0.000159,2]
[323122784,1713687033139,-10859.85446718,0.000159,2]
[323122785,1713687033153,-8925.78038105,0.000159,2]
[323122786,1713687033165,-545.26631843,0.000159,2]
[323122787,1713687033176,-298.69050621,0.000159,2]
[323122794,1713687038018,-410.4011585,0.00012847,2]
[323122795,1713687038031,-33.98995,0.00012847,2]
[323122796,1713687038041,-340.430069,0.00014521,2]
[323122797,1713687038051,-334.66264312,0.00015342,2]
[323122798,1713687038063,-5.76742588,0.00015342,2]
[323122799,1713687038073,-920.72224195,0.000159,2]
[323122800,1713687038082,-3721.43033217,0.000159,2]
[323122801,1713687038094,-330.98596817,0.000159,2]
[323122802,1713687038106,-424.0464867,0.000159,2]
[323122803,1713687038118,-14059.69801296,0.000159,2]
[323122804,1713687038128,-16811.8322,0.000159,2]
[323122805,1713687038137,-56069.87576009,0.000159,2]
[323122806,1713687038164,-622.21983407,0.000159,2]
[323122807,1713687038175,-401.85125,0.000159,2]
[323122808,1713687038187,-310.24010705,0.000159,2]
[323122809,1713687038216,-358.9537836,0.000159,2]
[323122810,1713687038242,-47018.75766705,0.000159,2]
[323122811,1713687038280,-1399.11811231,0.000159,2]
[323122812,1713687038307,-836.87762474,0.000159,2]
[323122813,1713687038318,-517.9058607,0.000159,2]
[323122814,1713687038361,-10000.01000001,0.000159,2]
[323122986,1713687040081,-651.7415435,0.000159,2]
[323122993,1713687040137,-672.329438,0.000159,2]
[323123005,1713687040245,-10329.3,0.000159,2]
[323123008,1713687040256,-3351.74839999,0.000159,2]
[323123010,1713687040267,-1600.96986562,0.000159,2]
[323123012,1713687040278,-549.94825059,0.000159,2]
[323123015,1713687040303,-2864.50572083,0.000159,2]
[323123018,1713687040315,-32318.87969999,0.000159,2]
[323123020,1713687040326,-403.38161684,0.000159,2]
[323123024,1713687040359,-345.91147168,0.000159,2]
[323123058,1713687040668,-1087.29,0.000159,2]
[323123061,1713687040696,-1853.6965244,0.000159,2]
[323123064,1713687040709,-1062.35456196,0.000159,2]
[323123066,1713687040724,-1426.29988665,0.000159,2]
[323123070,1713687040748,-7771.96226614,0.000159,2]
[323123071,1713687040762,-3989.74519,0.000159,2]
[323123072,1713687040781,-369.28332603,0.000159,2]
[323123296,1713687043061,-384.34999965,0.000159,2]
[323123302,1713687043115,-17590.60099035,0.000159,2]
[323123304,1713687043126,-3200.0,0.000159,2]
[323123307,1713687043141,-1516.6,0.000159,2]
[323123311,1713687043174,-311.7686698,0.000159,2]
[323123324,1713687043280,-33811.52257836,0.000159,2]
[323123326,1713687043292,-1219.461,0.000159,2]
[323123328,1713687043301,-20785.81967751,0.000159,2]
[323123330,1713687043310,-2711.4226046,0.00015984,2]
[323123332,1713687043319,-154.73172333,0.00015988,2]
[323123334,1713687043328,-151.55,0.00015988,2]
[323123336,1713687043338,-151.55,0.00015988,2]
[323123338,1713687043347,-151.55,0.00015988,2]
[323123340,1713687043355,-151.55,0.0001599,2]
[323123342,1713687043365,-1031.0,0.00015998,2]
[323123344,1713687043374,-206.42234034,0.00015998,2]
[323123346,1713687043383,-321.16018587,0.00015998,2]
[323123348,1713687043392,-1284.49086039,0.00015998,2]
[323123350,1713687043401,-781.12696215,0.00015998,2]
[323123352,1713687043410,-1533.84309041,0.00015998,2]
[323123354,1713687043419,-156.71459748,0.00015998,2]
[323123356,1713687043428,-200.4954751,0.00015998,2]
[323123358,1713687043437,-679.33917279,0.00015998,2]
[323123360,1713687043446,-411.56130726,0.00015998,2]
[323123362,1713687043455,-162.39294797,0.00015998,2]
[323123364,1713687043464,-1053.81580007,0.00015998,2]
[323123365,1713687043474,-29295.40639781,0.00015998,2]
[323123367,1713687043484,-1838.76223386,0.00015998,2]
[323123369,1713687043493,-181.60239483,0.00015998,2]
[323123371,1713687043503,-342.39725907,0.00015998,2]
[323123373,1713687043512,-509.5639271,0.00015998,2]
[323123375,1713687043522,-155.0,0.00015998,2]
[323123377,1713687043531,-325.19681803,0.00015998,2]
[323123379,1713687043542,-517.81303092,0.00015998,2]
[323123381,1713687043552,-155.29372391,0.00015998,2]
[323123383,1713687043562,-419.22939929,0.00015998,2]
[323123385,1713687043571,-204.25857792,0.00015998,2]
[323123387,1713687043581,-155.2186929,0.00015998,2]
[323123389,1713687043590,-2512.14031776,0.00015998,2]
[323123391,1713687043599,-353472.28563226,0.00015998,2]
[323123394,1713687043613,-681.83583395,0.00015998,2]
[323123402,1713687043648,-494.33920324,0.00015998,2]
[323123406,1713687043659,-24549.04101948,0.00015998,2]
[323123409,1713687043685,-1032.20097925,0.00015998,2]
[323123412,1713687043696,-981.30311709,0.00015998,2]
[323123416,1713687043722,-662.1095325,0.00015998,2]
[323123418,1713687043733,-723.43560825,0.00015998,2]
[323123420,1713687043743,-625.0,0.00015998,2]
[323123424,1713687043771,-3236.78017023,0.00015998,2]
[323123426,1713687043782,-1331.24,0.00015998,2]
[323123640,1713687046493,-535.43150208,0.00015899,2]
[323123641,1713687046505,-810.07969382,0.00015899,2]
[323123645,1713687265403,-1388.93541559,0.00012841,2]
[323123646,1713687265425,-212.12082284,0.00012844,2]
[323123647,1713687265445,-150.0,0.00012845,2]
[323123648,1713687265468,-150.0,0.00012845,2]
[323123649,1713687265491,-13137.87988921,0.00012846,2]
[323123650,1713687265511,-859.1088,0.0001286,2]
[323123661,1713688158117,-158.05660957,0.0001209,2]
[323123662,1713688158139,-1066.05041716,0.00012189,2]
[323123663,1713688222618,3037.71406881,0.0001158,2]
[323123674,1713688232477,-372.88887261,0.00012185,2]
[323123675,1713688232489,-1709.14612512,0.00012185,2]
[323123676,1713688232501,-384.20256361,0.00012185,2]
[323123677,1713688232586,-1292.44018087,0.00012185,2]
[323123678,1713688232596,-10.21981913,0.00012186,2]
[323123679,1713688232609,-1070.44158,0.00012186,2]
[323123680,1713688232796,-539.03830038,0.00012186,2]
[323123681,1713688232826,-212.12082284,0.00012184,2]
[323123682,1713688232835,-17816.46806709,0.00012186,2]
[323123683,1713688232844,-155.0,0.00012187,2]
[323123684,1713688232853,-316.0,0.00012189,2]
[323123685,1713688232862,-3080.15233842,0.0001219,2]
[323123686,1713688232871,-643.60909556,0.00012191,2]
[323123687,1713688232880,-857.49,0.00012521,2]
[323123688,1713688232889,-158.05660954,0.00012619,2]
[323123689,1713688232898,-158.05660954,0.00013149,2]
[323123690,1713688232907,-158.05660954,0.00013678,2]
[323123691,1713688232916,-1382.83,0.00013678,2]
[323123692,1713688232925,-200.0,0.000137,2]
[323123693,1713688232934,-250.0,0.00013961,2]
[323123694,1713688232943,-1750.0,0.00014,2]
[323123695,1713688232953,-420.48,0.00014076,2]
[323123696,1713688232962,-500.0,0.00014157,2]
[323123697,1713688232972,-158.05660954,0.00014208,2]
[323123698,1713688232981,-1000.0,0.0001422,2]
[323123699,1713688232990,-158.77,0.00014277,2]
[323123700,1713688232999,-586.50860375,0.00014306,2]
[323123701,1713688233011,-500.0,0.00014367,2]
[323123702,1713688233021,-196.08,0.0001438,2]
[323123703,1713688233031,-348.39,0.0001438,2]
[323123704,1713688233041,-499.99,0.0001438,2]
[323123705,1713688233054,-8870.62746964,0.0001445,2]
[323123706,1713688233090,-587.66513611,0.0001445,2]
[323123716,1713688238224,-651.18,0.0001445,2]
[323123717,1713688238236,-13790.52739425,0.0001445,2]
[323123718,1713688238246,-278.47,0.00014499,2]
[323123719,1713688238255,-1977.36,0.00014499,2]
[323123720,1713688238264,-500.0,0.00014599,2]
[323123721,1713688238274,-746.05,0.00014599,2]
[323123722,1713688238284,-200.0,0.00014607,2]
[323123723,1713688238295,-158.77,0.00014649,2]
[323123724,1713688238304,-150.0,0.00014651,2]
[323123725,1713688238516,-1295.38,0.00014651,2]